lending/lending_fUSD_20251121
["ID","MTS","AMOUNT","RATE_DAILY","PERIOD"]
[394600711,1763747885353,-500.0,0.00053698,120]
[394600712,1763747885408,-1052.15,0.00053698,120]
[394600713,1763747885457,-500.0,0.00053698,120]
[394600714,1763747885506,-760.56,0.00053698,120]
[394600715,1763747885559,-500.0,0.00053698,120]
[394600716,1763747885609,-500.0,0.00053698,120]
[394600717,1763747885658,-1214.77,0.00053698,120]
[394600718,1763747885707,-500.0,0.00053698,120]
[394600719,1763747885755,-500.0,0.00053698,120]
[394600720,1763747885803,-1106.22,0.00053698,120]
[394600721,1763747885852,-500.0,0.00053698,120]
[394600722,1763747885899,-500.0,0.00053698,120]
[394600723,1763747885948,-500.0,0.00053698,120]
[394600724,1763747885991,-500.0,0.00053698,120]
[394600725,1763747886033,-614.84623104,0.00053698,120]
[394600726,1763747886080,-500.0,0.00053698,120]
[394600727,1763747886124,-500.0,0.00053698,120]
[394600728,1763747886169,-500.0,0.00053698,120]
[394600729,1763747886215,-500.0,0.00053698,120]
[394600730,1763747886261,-500.0,0.00053698,120]
[394600731,1763747886306,-333.70450195,0.00053698,120]
[394600732,1763747886351,-500.0,0.00053698,120]
[394600733,1763747886398,-500.0,0.00053698,120]
[394600734,1763747886442,-500.0,0.00053698,120]
[394600735,1763747886487,-500.0,0.00053698,120]
[394600736,1763747886531,-503.1,0.00053698,120]
[394600737,1763747886575,-1170.16,0.00053698,120]
[394600738,1763747886620,-957.66,0.00053698,120]
[394600739,1763747886664,-500.0,0.00053698,120]
[394600740,1763747886709,-500.0,0.00053698,120]
[394600741,1763747886753,-297.02515126,0.00053698,120]
[394600742,1763747886797,-500.0,0.00053698,120]
[394600743,1763747886841,-500.0,0.00053698,120]
[394600744,1763747886883,-500.0,0.00053698,120]
[394600745,1763747886926,-973.1,0.00053698,120]
[394600746,1763747886972,-2407.97,0.00053698,120]
[394600747,1763747887019,-500.0,0.00053698,120]
[394600748,1763747887067,-500.0,0.00053698,120]
[394600749,1763747887114,-878.4,0.00053698,120]
[394600750,1763747887166,-500.0,0.00053698,120]
[394600751,1763747887210,-500.0,0.00053698,120]
[394600752,1763747887256,-412.61887307,0.00053698,120]
[394600753,1763747887302,-500.0,0.00053698,120]
[394600754,1763747887480,-550.06090608,0.00053698,120]
[394600755,1763747887555,-500.0,0.00053698,120]
[394600756,1763747887604,-575.76,0.00053698,120]
[394600757,1763747887652,-500.0,0.00053698,120]
[394600758,1763747887699,-500.0,0.00053698,120]
[394600759,1763747887745,-873.91,0.00053698,120]
[394600760,1763747887789,-500.0,0.00053698,120]
[394600761,1763747887834,-500.0,0.00053698,120]
[394600762,1763747887880,-500.0,0.00053698,120]
[394600763,1763747887925,-500.0,0.00053698,120]
[394600764,1763747887968,-500.0,0.00053698,120]
[394600765,1763747888012,-500.0,0.00053698,120]
[394600766,1763747888055,-1105.99,0.00053698,120]
[394600767,1763747888103,-500.0,0.00053698,120]
[394600768,1763747888154,-500.0,0.00053698,120]
[394600769,1763747888211,-513.43365835,0.00053698,120]
[394600770,1763747888262,-458.89370007,0.00053698,120]
[394600771,1763747888314,-845.17,0.00053698,120]
[394600772,1763747888362,-500.0,0.00053698,120]
[394600773,1763747888417,-500.0,0.00053698,120]
[394600774,1763747888475,-513.56,0.00053698,120]
[394600775,1763747888531,-500.0,0.00053698,120]
[394600776,1763747888582,-500.0,0.00053698,120]
[394600777,1763747888631,-500.0,0.00053698,120]
[394600778,1763747888684,-724.48,0.00053698,120]
[394600779,1763747888731,-500.0,0.00053698,120]
[394600780,1763747888777,-500.0,0.00053698,120]
[394600781,1763747888823,-1506.7,0.00053698,60]
[394600782,1763747888871,-808.43,0.00053698,120]
[394600783,1763747888917,-656.18,0.00053698,120]
[394600784,1763747888967,-929.35,0.00053698,120]
[394600785,1763747889014,-529.30556468,0.00053698,120]
[394600786,1763747889062,-690.86,0.00053698,120]
[394600787,1763747889109,-500.0,0.00053698,120]
[394600788,1763747889161,-650.71,0.00053698,120]
[394600789,1763747889209,-500.0,0.00053698,120]
[394600790,1763747889256,-500.0,0.00053698,120]
[394600791,1763747889302,-707.79,0.00053698,120]
[394600792,1763747889349,-761.86,0.00053698,120]
[394600793,1763747889396,-500.0,0.00053698,120]
[394600794,1763747889441,-500.0,0.00053698,120]
[394600795,1763747889486,-984.62,0.00053698,120]
[394600796,1763747889533,-693.27,0.00053698,120]
[394600797,1763747889583,-500.0,0.00053698,120]
[394600798,1763747889632,-500.0,0.00053698,30]
[394600799,1763747889676,-420.69915213,0.00053698,120]
[394600800,1763747889719,-500.0,0.00053698,120]
[394600801,1763747889763,-1079.48,0.00053698,120]
[394600802,1763747889806,-500.0,0.00053698,120]
[394600803,1763747889851,-561.65336812,0.00053698,120]
[394600804,1763747889898,-500.0,0.00053698,120]
[394600805,1763747889942,-832.22,0.00053698,120]
[394600806,1763747889985,-500.0,0.00053698,120]
[394600807,1763747890031,-906.02,0.00053698,120]
[394600808,1763747890077,-553.23,0.00053698,120]
[394600809,1763747890123,-592.29,0.00053698,120]
[394600810,1763747890167,-500.0,0.00053698,120]
[394600811,1763747890211,-504.92281685,0.00053698,60]
[394600812,1763747890257,-827.73,0.00053698,30]
[394600813,1763747890304,-500.0,0.00053698,120]
[394600814,1763747890350,-500.0,0.00053698,120]
[394600815,1763747890396,-1355.84,0.00053698,120]
[394600816,1763747890440,-500.0,0.00053698,120]
[394600817,1763747890486,-736.06,0.00053698,120]
[394600818,1763747890535,-500.0,0.00053698,120]
[394600819,1763747890582,-500.0,0.00053698,120]
[394600820,1763747890628,-741.62,0.00053698,120]
[394600821,1763747890674,-500.0,0.00053698,120]
[394600822,1763747890722,-946.76,0.00053698,120]
[394600823,1763747890768,-500.0,0.00053698,120]
[394600824,1763747890814,-1462.58,0.00053698,120]
[394600825,1763747890861,-1132.61,0.00053698,120]
[394600826,1763747890908,-500.0,0.00053698,120]
[394600827,1763747890953,-500.0,0.00053698,120]
[394600828,1763747890999,-500.0,0.00053698,120]
[394600829,1763747891042,-500.0,0.00053698,120]
[394600830,1763747891085,-500.0,0.00053698,120]
[394600831,1763747891128,-1342.9,0.00053698,120]
[394600832,1763747891170,-720.54,0.00053698,120]
[394600833,1763747891213,-500.0,0.00053698,120]
[394600834,1763747891258,-500.0,0.00053698,120]
[394600835,1763747891305,-500.0,0.00053698,120]
[394600836,1763747891352,-727.09,0.00053698,120]
[394600837,1763747891397,-500.0,0.00053698,120]
[394600838,1763747891442,-500.0,0.00053698,120]
[394600839,1763747891486,-819.94,0.00053698,120]
[394600840,1763747891535,-1000.0,0.00053698,120]
[394600841,1763747891582,-1107.01,0.00053698,120]
[394600842,1763747891629,-855.69,0.00053698,120]
[394600843,1763747891676,-500.0,0.00053698,120]
[394600844,1763747891722,-769.88,0.00053698,120]
[394600845,1763747891766,-723.27,0.00053698,120]
[394600846,1763747891809,-500.0,0.00053698,120]
[394600847,1763747891855,-500.0,0.00053698,120]
[394600848,1763747891905,-1304.3,0.00053698,120]
[394600849,1763747891949,-500.0,0.00053698,120]
[394600850,1763747891995,-724.08,0.00053698,120]
[394600851,1763747892040,-950.48,0.00053698,120]
[394600852,1763747892083,-500.0,0.00053698,120]
[394600853,1763747892126,-500.0,0.00053698,120]
[394600854,1763747892170,-528.28,0.00053698,120]
[394600855,1763747892215,-500.0,0.00053698,120]
[394600856,1763747892259,-901.14,0.00053698,120]
[394600857,1763747892303,-500.0,0.00053698,120]
[394600858,1763747892492,-243.35907894,0.00053698,120]
[394600859,1763747892571,-1573.04,0.00053698,120]
[394600860,1763747892622,-500.0,0.00053698,120]
[394600861,1763747892669,-1203.66,0.00053698,120]
[394600862,1763747892715,-409.76348307,0.00053698,120]
[394600863,1763747892759,-500.0,0.00053698,120]
[394600864,1763747892804,-1601.91,0.00053698,120]
[394600865,1763747892848,-500.0,0.00053698,120]
[394600866,1763747892892,-500.0,0.00053698,120]
[394600867,1763747892938,-666.68,0.00053698,120]
[394600868,1763747892986,-808.0,0.00053698,120]
[394600869,1763747893034,-500.0,0.00053698,120]
[394600870,1763747893080,-500.0,0.00053698,120]
[394600871,1763747893128,-1603.08,0.00053698,120]
[394600872,1763747893172,-500.0,0.00053698,120]
[394600873,1763747893217,-501.50260491,0.00053698,120]
[394600874,1763747893263,-751.13,0.00053698,120]
[394600875,1763747893306,-500.0,0.00053698,120]
[394600876,1763747893352,-500.0,0.00053698,120]
[394600877,1763747893400,-500.0,0.00053698,120]
[394600878,1763747893446,-763.27,0.00053698,120]
[394600879,1763747893496,-500.0,0.00053698,120]
[394600880,1763747893546,-571.84,0.00053698,120]
[394600881,1763747893595,-500.0,0.00053698,120]
[394600882,1763747893643,-500.0,0.00053698,120]
[394600883,1763747893687,-1309.95,0.00053698,120]
[394600884,1763747893733,-507.36622874,0.00053698,120]
[394600885,1763747893779,-500.0,0.00053698,120]
[394600886,1763747893826,-500.0,0.00053698,120]
[394600887,1763747893872,-804.84,0.00053698,120]
[394600888,1763747893918,-590.59,0.00053698,120]
[394600889,1763747893965,-500.0,0.00053698,120]
[394600890,1763747894013,-500.0,0.00053698,120]
[394600891,1763747894062,-455.88411792,0.00053698,120]
[394600892,1763747894109,-649.35,0.00053698,120]
[394600893,1763747894155,-516.84098758,0.00053698,120]
[394600894,1763747894203,-1116.21,0.00053698,120]
[394600895,1763747894250,-530.04561379,0.00053698,120]
[394600896,1763747894296,-500.0,0.00053698,120]
[394600897,1763747894345,-531.07082413,0.00053698,120]
[394600898,1763747894391,-500.0,0.00053698,120]
[394600899,1763747894437,-500.0,0.00053698,120]
[394600900,1763747894483,-981.19,0.00053698,60]
[394600901,1763747894534,-605.43,0.00053698,120]
[394600902,1763747894582,-941.61,0.00053698,120]
[394600903,1763747894629,-1341.05,0.00053698,120]
[394600904,1763747894672,-778.38,0.00053698,120]
[394600905,1763747894718,-500.0,0.00053698,120]
[394600906,1763747894764,-648.37,0.00053698,120]
[394600907,1763747894814,-500.0,0.00053698,120]
[394600908,1763747894861,-500.0,0.00053698,120]
[394600909,1763747894908,-824.18,0.00053698,120]
[394600910,1763747894955,-500.0,0.00053698,120]
[394600911,1763747895001,-936.91,0.00053698,120]
[394600912,1763747895048,-842.26,0.00053698,120]
[394600913,1763747895094,-500.0,0.00053698,120]
[394600914,1763747895137,-500.0,0.00053698,120]
[394600915,1763747895180,-500.0,0.00053698,120]
[394600916,1763747895226,-500.0,0.00053698,120]
[394600917,1763747895274,-1178.99,0.00053698,120]
[394600918,1763747895320,-869.45,0.00053698,120]
[394600919,1763747895366,-987.93,0.00053698,120]
[394600920,1763747895415,-500.0,0.00053698,120]
[394600921,1763747895461,-500.0,0.00053698,120]
[394600922,1763747895508,-500.0,0.00053698,120]
[394600923,1763747895560,-500.0,0.00053698,120]
[394600924,1763747895609,-500.0,0.00053698,120]
[394600925,1763747895658,-500.0,0.00053698,120]
[394600926,1763747895705,-500.0,0.00053698,120]
[394600927,1763747895755,-810.32,0.00053698,120]
[394600928,1763747895804,-500.0,0.00053698,120]
[394600929,1763747895854,-1080.27,0.00053698,120]
[394600930,1763747895903,-693.56,0.00053698,120]
[394600931,1763747895948,-1946.82,0.00053698,120]
[394600932,1763747895991,-211.64114581,0.00053698,120]
[394600933,1763747896034,-500.0,0.00053698,120]
[394600934,1763747896076,-500.0,0.00053698,120]
[394600935,1763747896119,-500.0,0.00053698,120]
[394600936,1763747896162,-500.0,0.00053698,120]
[394600937,1763747896206,-708.1,0.00053698,120]
[394600938,1763747896246,-500.0,0.00053698,120]
[394600939,1763747896288,-992.78,0.00053698,120]
[394600940,1763747896330,-500.0,0.00053698,120]
[394600941,1763747896371,-508.5,0.00053698,120]
[394600942,1763747896410,-713.59,0.00053698,120]
[394600943,1763747896450,-500.0,0.00053698,120]
[394600944,1763747896501,-500.0,0.00053698,120]
[394600945,1763747896540,-500.0,0.00053698,120]
[394600946,1763747896580,-500.0,0.00053698,120]
[394600947,1763747896622,-1028.78,0.00053698,120]
[394600948,1763747896662,-881.59,0.00053698,120]
[394600949,1763747896701,-500.0,0.00053698,120]
[394600950,1763747896742,-500.0,0.00053698,120]
[394600951,1763747896784,-575.97,0.00053698,120]
[394600952,1763747896826,-1034.61,0.00053698,120]
[394600953,1763747896866,-578.74438132,0.00053698,120]
[394600954,1763747896908,-1384.33,0.00053698,120]
[394600955,1763747896948,-500.0,0.00053698,120]
[394600956,1763747896989,-500.0,0.00053698,120]
[394600957,1763747897030,-500.0,0.00053698,120]
[394600958,1763747897069,-500.0,0.00053698,120]
[394600959,1763747897112,-781.65,0.00053698,120]
[394600960,1763747897160,-1450.24,0.00053698,120]
[394600961,1763747897207,-749.47,0.00053698,120]
[394600962,1763747897445,-510.67,0.00053698,120]
[394600963,1763747897494,-500.0,0.00053698,120]
[394600964,1763747897541,-500.0,0.00053698,120]
[394600965,1763747897587,-500.0,0.00053698,120]
[394600966,1763747897634,-500.0,0.00053698,120]
[394600967,1763747897679,-302.5606667,0.00053698,120]
[394600968,1763747897725,-900.52,0.00053698,120]
[394600969,1763747897770,-500.0,0.00053698,120]
[394600970,1763747897815,-500.0,0.00053698,120]
[394600971,1763747897861,-801.13,0.00053698,120]
[394600972,1763747897907,-500.0,0.00053698,120]
[394600973,1763747897951,-500.0,0.00053698,120]
[394600974,1763747897995,-530.08,0.00053698,120]
[394600975,1763747898035,-500.0,0.00053698,120]
[394600976,1763747898075,-500.0,0.00053698,120]
[394600977,1763747898117,-529.37,0.00053698,120]
[394600978,1763747898158,-500.0,0.00053698,120]
[394600979,1763747898199,-500.0,0.00053698,120]
[394600980,1763747898244,-534.62,0.00053698,120]
[394600981,1763747898286,-500.0,0.00053698,120]
[394600982,1763747898328,-2628.55,0.00053698,120]
[394600983,1763747898376,-610.92,0.00053698,120]
[394600984,1763747898419,-573.78,0.00053698,120]
[394600985,1763747898466,-500.0,0.00053698,120]
[394600986,1763747898511,-582.27,0.00053698,120]
[394600987,1763747898566,-500.0,0.00053698,120]
[394600988,1763747898615,-688.14,0.00053698,120]
[394600989,1763747898670,-159.6040678,0.00053698,120]
[394600990,1763747898720,-500.0,0.00053698,120]
[394600991,1763747898778,-500.0,0.00053698,120]
[394600992,1763747898824,-605.96,0.00053698,120]
[394600993,1763747898875,-337.13300136,0.00053698,120]
[394600994,1763747898928,-500.0,0.00053698,120]
[394600995,1763747898974,-500.0,0.00053698,120]
[394600996,1763747899020,-1066.23,0.00053698,120]
[394600997,1763747899068,-500.0,0.00053698,120]
[394600998,1763747899113,-500.0,0.00053698,120]
[394600999,1763747899162,-1001.2,0.00053698,120]
[394601000,1763747899211,-696.75,0.00053698,120]
[394601001,1763747899258,-500.0,0.00053698,120]
[394601002,1763747899305,-500.0,0.00053698,120]
[394601003,1763747899352,-1029.84,0.00053698,120]
[394601004,1763747899396,-500.0,0.00053698,120]
[394601005,1763747899440,-500.0,0.00053698,120]
[394601006,1763747899485,-751.21,0.00053698,120]
[394601007,1763747899537,-1143.16,0.00053698,120]
[394601008,1763747899587,-500.0,0.00053698,120]
[394601009,1763747899637,-838.21,0.00053698,120]
[394601010,1763747899684,-1113.96,0.00053698,120]
[394601011,1763747899730,-1397.82,0.00053698,120]
[394601012,1763747899773,-500.0,0.00053698,120]
[394601013,1763747899819,-500.0,0.00053698,120]
[394601014,1763747899866,-500.0,0.00053698,120]
[394601015,1763747899924,-1087.27,0.00053698,120]
[394601016,1763747899971,-1097.77,0.00053698,120]
[394601017,1763747900020,-500.0,0.00053698,120]
[394601018,1763747900069,-500.0,0.00053698,120]
[394601019,1763747900114,-500.0,0.00053698,120]
[394601020,1763747900164,-500.0,0.00053698,120]
[394601021,1763747900212,-500.0,0.00053698,120]
[394601022,1763747900272,-500.0,0.00053698,120]
[394601023,1763747900318,-745.2,0.00053698,120]
[394601024,1763747900360,-500.0,0.00053698,120]
[394601025,1763747900402,-823.26,0.00053698,120]
[394601026,1763747900444,-509.74,0.00053698,120]
[394601027,1763747900485,-503.59,0.00053698,120]
[394601028,1763747900532,-500.0,0.00053698,120]
[394601029,1763747900579,-1132.92,0.00053698,120]
[394601030,1763747900628,-1039.18,0.00053698,120]
[394601031,1763747900675,-500.0,0.00053698,120]
[394601032,1763747900720,-644.23,0.00053698,120]
[394601033,1763747900763,-627.82563595,0.00053698,120]
[394601034,1763747900804,-549.24795476,0.00053698,120]
[394601035,1763747900844,-1146.28,0.00053698,120]
[394601036,1763747900886,-856.07,0.00053698,120]
[394601037,1763747900930,-500.0,0.00053698,120]
[394601038,1763747900972,-542.73296938,0.00053698,120]
[394601039,1763747901014,-500.0,0.00053698,120]
[394601040,1763747901059,-500.0,0.00053698,120]
[394601041,1763747901105,-500.0,0.00053698,120]
[394601042,1763747901150,-1029.38,0.00053698,120]
[394601043,1763747901201,-734.53,0.00053698,120]
[394601044,1763747901251,-998.72,0.00053698,120]
[394601045,1763747901300,-500.0,0.00053698,120]
[394601046,1763747901344,-333.94019915,0.00053698,120]
[394601047,1763747901385,-1353.79,0.00053698,30]
[394601048,1763747901427,-476.00413062,0.00053698,120]
[394601049,1763747901466,-500.0,0.00053698,120]
[394601050,1763747901507,-1683.58,0.00053698,120]
[394601051,1763747901547,-500.0,0.00053698,120]
[394601052,1763747901589,-4331.94,0.00053698,120]
[394601053,1763747901630,-500.0,0.00053698,120]
[394601054,1763747901695,-525.01,0.00053698,120]
[394601055,1763747901742,-500.0,0.00053698,120]
[394601056,1763747901785,-500.0,0.00053698,120]
[394601057,1763747901827,-1471.29,0.00053698,120]
[394601058,1763747901870,-246.24186463,0.00053698,120]
[394601059,1763747901915,-704.3,0.00053698,120]
[394601060,1763747901958,-500.0,0.00053698,120]
[394601061,1763747902000,-2472.18,0.00053698,120]
[394601062,1763747902041,-500.0,0.00053698,120]
[394601063,1763747902081,-1095.82,0.00053698,120]
[394601064,1763747902122,-562.31,0.00053698,120]
[394601065,1763747902420,-500.0,0.00053698,120]
[394601066,1763747902467,-500.0,0.00053698,120]
[394601067,1763747902514,-997.78,0.00053698,120]
[394601068,1763747902566,-500.0,0.00053698,120]
[394601069,1763747902619,-500.0,0.00053698,120]
[394601070,1763747902668,-500.0,0.00053698,120]
[394601071,1763747902713,-415.92866284,0.00053698,120]
[394601072,1763747902757,-500.0,0.00053698,120]
[394601073,1763747902799,-725.52,0.00053698,120]
[394601074,1763747902840,-500.0,0.00053698,120]
[394601075,1763747902884,-500.0,0.00053698,120]
[394601076,1763747902944,-742.03,0.00053698,120]
[394601077,1763747902990,-500.0,0.00053698,120]
[394601078,1763747903036,-1752.44,0.00053698,120]
[394601079,1763747903082,-500.0,0.00053698,120]
[394601080,1763747903129,-500.0,0.00053698,120]
[394601081,1763747903176,-500.0,0.00053698,120]
[394601082,1763747903220,-500.0,0.00053698,120]
[394601083,1763747903265,-500.0,0.00053698,120]
[394601084,1763747903308,-523.83,0.00053698,120]
[394601085,1763747903354,-500.0,0.00053698,120]
[394601086,1763747903400,-1610.76,0.00053698,120]
[394601087,1763747903449,-500.0,0.00053698,120]
[394601088,1763747903497,-500.0,0.00053698,120]
[394601089,1763747903542,-164.12486209,0.00053698,120]
[394601090,1763747903591,-500.0,0.00053698,120]
[394601091,1763747903644,-1316.99,0.00053698,120]
[394601092,1763747903693,-526.62,0.00053698,120]
[394601093,1763747903743,-1262.41,0.00053698,120]
[394601094,1763747903792,-539.35318206,0.00053698,120]
[394601095,1763747903840,-624.9,0.00053698,120]
[394601096,1763747903893,-1077.55,0.00053698,120]
[394601097,1763747903945,-500.0,0.00053698,120]
[394601098,1763747903998,-511.18,0.00053698,120]
[394601099,1763747904056,-1189.13,0.00053698,120]
[394601100,1763747904108,-1015.18,0.00053698,120]
[394601101,1763747904157,-731.57,0.00053698,120]
[394601102,1763747904206,-500.0,0.00053698,120]
[394601103,1763747904264,-500.0,0.00053698,120]
[394601104,1763747904312,-500.0,0.00053698,120]
[394601105,1763747904356,-500.0,0.00053698,120]
[394601106,1763747904399,-500.0,0.00053698,120]
[394601107,1763747904443,-500.0,0.00053699,30]
[394601108,1763747904485,-500.0,0.00053699,30]
[394601109,1763747904528,-500.0,0.00053699,30]
[394601110,1763747904573,-500.0,0.00053699,30]
[394601111,1763747904617,-500.0,0.00053699,30]
[394601112,1763747904662,-500.0,0.00053699,30]
[394601113,1763747904707,-500.0,0.00053699,30]
[394601114,1763747904753,-286.92836966,0.00053699,30]
[394601115,1763747904797,-152.0,0.000537,120]
[394601116,1763747904843,-500.0,0.00053718,60]
[394601117,1763747904890,-176.0,0.000539,120]
[394601118,1763747904944,-1232.94,0.00053959,90]
[394601119,1763747904994,-1232.94,0.00053959,90]
[394601120,1763747905043,-2000.0,0.00053972,30]
[394601121,1763747905086,-500.0,0.00053972,120]
[394601122,1763747905129,-500.0,0.00053972,120]
[394601123,1763747905169,-500.0,0.00053972,120]
[394601124,1763747905211,-500.0,0.00053972,120]
[394601125,1763747905254,-500.0,0.00053972,120]
[394601126,1763747905298,-500.0,0.00053972,120]
[394601127,1763747905342,-500.0,0.00053972,120]
[394601128,1763747905389,-500.0,0.00053972,120]
[394601129,1763747905435,-500.0,0.00053972,120]
[394601130,1763747905481,-500.0,0.00053972,120]
[394601131,1763747905532,-649.76,0.00053972,120]
[394601132,1763747905578,-1504.61,0.00053972,120]
[394601133,1763747905623,-1108.34,0.00053972,120]
[394601134,1763747905671,-500.0,0.00053972,120]
[394601135,1763747905714,-1186.86,0.00053972,120]
[394601136,1763747905755,-500.0,0.00053972,120]
[394601137,1763747905797,-500.0,0.00053972,120]
[394601138,1763747905839,-500.0,0.00053972,120]
[394601139,1763747905885,-500.0,0.00053972,120]
[394601140,1763747905927,-1259.12,0.00053972,120]
[394601141,1763747905969,-500.0,0.00053972,120]
[394601142,1763747906009,-500.0,0.00053972,120]
[394601143,1763747906052,-500.0,0.00053972,120]
[394601144,1763747906095,-500.0,0.00053972,120]
[394601145,1763747906138,-500.0,0.00053972,120]
[394601146,1763747906182,-987.47,0.00053972,120]
[394601147,1763747906221,-749.7,0.00053972,120]
[394601148,1763747906261,-500.0,0.00053972,120]
[394601149,1763747906302,-500.0,0.00053972,120]
[394601150,1763747906345,-500.0,0.00053972,120]
[394601151,1763747906387,-500.0,0.00053972,120]
[394601152,1763747906428,-757.04,0.00053972,120]
[394601153,1763747906468,-500.0,0.00053972,120]
[394601154,1763747906509,-640.53,0.00053972,120]
[394601155,1763747906554,-500.0,0.00053972,120]
[394601156,1763747906597,-500.0,0.00053972,120]
[394601157,1763747906641,-500.0,0.00053972,120]
[394601158,1763747906686,-500.0,0.00053972,120]
[394601159,1763747906729,-606.66,0.00053972,120]
[394601160,1763747906772,-500.0,0.00053972,120]
[394601161,1763747906817,-500.0,0.00053972,120]
[394601162,1763747906859,-500.0,0.00053972,120]
[394601163,1763747906904,-500.0,0.00053972,120]
[394601164,1763747906949,-500.0,0.00053972,120]
[394601165,1763747906993,-844.19,0.00053972,120]
[394601166,1763747907037,-939.26,0.00053972,60]
[394601167,1763747907084,-500.0,0.00053972,120]
[394601168,1763747907132,-1476.41,0.00053972,120]
[394601169,1763747907390,-500.0,0.00053972,120]
[394601170,1763747907436,-885.49,0.00053972,120]
[394601171,1763747907478,-605.14,0.00053972,120]
[394601172,1763747907520,-599.80524795,0.00053972,120]
[394601173,1763747907565,-635.71,0.00053972,120]
[394601174,1763747907611,-500.0,0.00053972,120]
[394601175,1763747907653,-500.0,0.00053972,120]
[394601176,1763747907692,-886.24,0.00053972,120]
[394601177,1763747907737,-973.25,0.00053972,120]
[394601178,1763747907780,-910.07,0.00053972,120]
[394601179,1763747907820,-500.0,0.00053972,120]
[394601180,1763747907860,-903.3,0.00053972,120]
[394601181,1763747907905,-500.0,0.00053972,120]
[394601182,1763747907946,-500.0,0.00053972,120]
[394601183,1763747907986,-269.62335523,0.00053972,120]
[394601184,1763747908028,-500.0,0.00053972,120]
[394601185,1763747908071,-931.08,0.00053972,120]
[394601186,1763747908111,-500.0,0.00053972,120]
[394601187,1763747908153,-500.0,0.00053972,120]
[394601188,1763747908193,-500.0,0.00053972,120]
[394601189,1763747908237,-677.66,0.00053972,120]
[394601190,1763747908280,-500.0,0.00053972,120]
[394601191,1763747908323,-500.0,0.00053972,120]
[394601192,1763747908364,-1089.8,0.00053972,120]
[394601193,1763747908411,-600.17,0.00053972,120]
[394601194,1763747908455,-500.0,0.00053972,120]
[394601195,1763747908497,-500.0,0.00053972,120]
[394601196,1763747908540,-500.0,0.00053972,120]
[394601197,1763747908584,-528.23,0.00053972,120]
[394601198,1763747908628,-896.01,0.00053972,120]
[394601199,1763747908672,-1060.14,0.00053972,120]
[394601200,1763747908715,-853.65,0.00053972,120]
[394601201,1763747908759,-500.0,0.00053972,120]
[394601202,1763747908800,-1172.32,0.00053972,120]
[394601203,1763747908839,-892.68,0.00053972,120]
[394601204,1763747908881,-500.0,0.00053972,120]
[394601205,1763747908923,-683.37,0.00053972,120]
[394601206,1763747908966,-1066.61,0.00053972,120]
[394601207,1763747909009,-500.0,0.00053972,120]
[394601208,1763747909052,-1328.68,0.00053972,120]
[394601209,1763747909095,-500.0,0.00053972,120]
[394601210,1763747909135,-248.5982387,0.00053972,120]